[Event "Early-Titled-Tuesday-Blitz-October-03-2023"]
[Site "Chess.com"]
[Date "2023.10.03"]
[Round "2"]
[White "hakanazeri2"]
[Black "Hrant_ChessMood"]
[Result "0-1"]
[WhiteElo "2609"]
[BlackElo "2913"]
[TimeControl "180+1"]
[EndTime "8:16:16 PDT"]
[Termination "Hrant_ChessMood won by resignation"]

1. Nf3 {[%clk 0:03:00.9]} 1... c5 {[%clk 0:02:44.9]} 2. c4 {[%clk 0:02:56.7]}
2... Nc6 {[%clk 0:02:44.2]} 3. Nc3 {[%clk 0:02:51.8]} 3... g6 {[%clk 0:02:43.6]}
4. g3 {[%clk 0:02:50.5]} 4... Bg7 {[%clk 0:02:43.1]} 5. Bg2 {[%clk 0:02:50.6]}
5... d6 {[%clk 0:02:42.8]} 6. O-O {[%clk 0:02:50.8]} 6... Bf5 {[%clk 0:02:43.1]}
7. a3 {[%clk 0:02:23.9]} 7... Qd7 {[%clk 0:02:42.7]} 8. b4 {[%clk 0:02:20.1]}
8... Rc8 {[%clk 0:02:37.8]} 9. Bb2 {[%clk 0:02:13.5]} 9... b6 {[%clk 0:02:33.7]}
10. d3 {[%clk 0:01:58.4]} 10... Nf6 {[%clk 0:02:29.4]} 11. Nd5 {[%clk 0:01:55]}
11... e5 {[%clk 0:02:27.1]} 12. b5 {[%clk 0:01:50.5]} 12... Nd4 {[%clk
0:02:20.9]} 13. Nxd4 {[%clk 0:01:43.3]} 13... cxd4 {[%clk 0:02:14.6]} 14. e4
{[%clk 0:01:22.8]} 14... Bg4 {[%clk 0:02:07.7]} 15. f3 {[%clk 0:01:17.2]} 15...
Nxd5 {[%clk 0:02:02.7]} 16. exd5 {[%clk 0:01:12.6]} 16... Bh3 {[%clk 0:02:03.3]}
17. f4 {[%clk 0:01:09.7]} 17... Bxg2 {[%clk 0:01:57.5]} 18. Kxg2 {[%clk
0:01:10.6]} 18... f5 {[%clk 0:01:57.4]} 19. a4 {[%clk 0:01:01]} 19... O-O {[%clk
0:01:53.7]} 20. a5 {[%clk 0:00:58]} 20... Rfe8 {[%clk 0:01:53.3]} 21. axb6
{[%clk 0:00:58]} 21... axb6 {[%clk 0:01:54.2]} 22. Ra6 {[%clk 0:00:55.6]} 22...
Rb8 {[%clk 0:01:53.6]} 23. fxe5 {[%clk 0:00:53.6]} 23... dxe5 {[%clk 0:01:49]}
24. Qa4 {[%clk 0:00:50.7]} 24... e4 {[%clk 0:01:47.3]} 25. Ra7 {[%clk
0:00:49.3]} 25... Rb7 {[%clk 0:01:41.5]} 26. Rxb7 {[%clk 0:00:43.1]} 26... Qxb7
{[%clk 0:01:42.4]} 27. dxe4 {[%clk 0:00:31.1]} 27... fxe4 {[%clk 0:01:37.5]} 28.
Qa6 {[%clk 0:00:14.2]} 28... Qxa6 {[%clk 0:01:26.5]} 29. bxa6 {[%clk 0:00:15.1]}
29... e3 {[%clk 0:01:27]} 30. a7 {[%clk 0:00:04.6]} 30... d3 {[%clk 0:01:20.8]}
31. Bxg7 {[%clk 0:00:02.3]} 31... Kxg7 {[%clk 0:01:21.7]} 32. Kh3 {[%clk
0:00:02.8]} 32... e2 {[%clk 0:01:19.5]} 33. Re1 {[%clk 0:00:03.3]} 33... Ra8
{[%clk 0:01:16.9]} 34. d6 {[%clk 0:00:02.3]} 34... d2 {[%clk 0:01:17.2]} 35.
Rxe2 {[%clk 0:00:02]} 35... d1=Q {[%clk 0:01:17.7]} 0-1

[Event "Early-Titled-Tuesday-Blitz-October-03-2023"]
[Site "Chess.com"]
[Date "2023.10.03"]
[Round "2"]
[White "Polish_fighter3000"]
[Black "LoydBlankenship"]
[Result "1-0"]
[WhiteElo "3092"]
[BlackElo "2649"]
[TimeControl "180+1"]
[EndTime "8:16:20 PDT"]
[Termination "Polish_fighter3000 won by resignation"]

1. e4 {[%clk 0:03:00.9]} 1... e6 {[%clk 0:02:57.5]} 2. d4 {[%clk 0:02:54.9]}
2... d5 {[%clk 0:02:56.5]} 3. Bd3 {[%clk 0:02:54.9]} 3... Nf6 {[%clk 0:02:52.6]}
4. e5 {[%clk 0:02:50.6]} 4... Nfd7 {[%clk 0:02:52.9]} 5. f4 {[%clk 0:02:49.1]}
5... c5 {[%clk 0:02:53]} 6. c3 {[%clk 0:02:49.7]} 6... Nc6 {[%clk 0:02:52.5]} 7.
Nf3 {[%clk 0:02:49.6]} 7... g6 {[%clk 0:02:47.1]} 8. O-O {[%clk 0:02:47.1]} 8...
Qb6 {[%clk 0:02:43.7]} 9. Bc2 {[%clk 0:02:44.8]} 9... Be7 {[%clk 0:02:24.4]} 10.
Kh1 {[%clk 0:02:38]} 10... h5 {[%clk 0:02:14]} 11. a3 {[%clk 0:02:36.4]} 11...
cxd4 {[%clk 0:02:11.6]} 12. cxd4 {[%clk 0:02:37.3]} 12... Na5 {[%clk 0:02:12.2]}
13. Nc3 {[%clk 0:02:35.3]} 13... a6 {[%clk 0:02:06.4]} 14. Qe2 {[%clk
0:01:57.8]} 14... Qc7 {[%clk 0:01:59.3]} 15. Ng5 {[%clk 0:01:39]} 15... Nf8
{[%clk 0:01:52.8]} 16. Be3 {[%clk 0:01:31.4]} 16... b5 {[%clk 0:01:52.5]} 17.
Bf2 {[%clk 0:01:28.3]} 17... Nc4 {[%clk 0:01:50.7]} 18. Bd3 {[%clk 0:01:27.6]}
18... Bb7 {[%clk 0:01:45.5]} 19. Rac1 {[%clk 0:01:23.9]} 19... Qd8 {[%clk
0:01:45.8]} 20. Bh4 {[%clk 0:01:21.8]} 20... Rc8 {[%clk 0:01:40.8]} 21. Rc2
{[%clk 0:01:15.5]} 21... Qb6 {[%clk 0:01:37.2]} 22. Bf2 {[%clk 0:00:59.5]} 22...
Qd8 {[%clk 0:01:32.7]} 23. Nb1 {[%clk 0:00:54.7]} 23... Bxg5 {[%clk 0:01:29.5]}
24. fxg5 {[%clk 0:00:55.6]} 24... Qxg5 {[%clk 0:01:29.9]} 25. b3 {[%clk
0:00:56]} 25... Nb6 {[%clk 0:01:29.9]} 26. Nd2 {[%clk 0:00:52.6]} 26... Qe7
{[%clk 0:01:29.2]} 27. a4 {[%clk 0:00:45.1]} 27... Rxc2 {[%clk 0:01:23.9]} 28.
Bxc2 {[%clk 0:00:45]} 28... Bc6 {[%clk 0:01:24.5]} 29. Nf3 {[%clk 0:00:41.1]}
29... Nfd7 {[%clk 0:01:23.5]} 30. a5 {[%clk 0:00:38.3]} 30... Nc8 {[%clk
0:01:21.9]} 31. Bh4 {[%clk 0:00:38.7]} 31... Qb4 {[%clk 0:01:22]} 32. Be1 {[%clk
0:00:35]} 32... Qa3 {[%clk 0:01:20.1]} 33. Bd2 {[%clk 0:00:34.7]} 33... Ne7
{[%clk 0:01:19.9]} 34. Rc1 {[%clk 0:00:26.9]} 34... O-O {[%clk 0:01:12.3]} 35.
Qe1 {[%clk 0:00:26.8]} 35... Nf5 {[%clk 0:01:07.2]} 36. Bb4 {[%clk 0:00:23.7]}
36... Qb2 {[%clk 0:01:04.3]} 37. Bxf8 {[%clk 0:00:20.5]} 37... Bb7 {[%clk
0:01:01]} 38. Bxf5 {[%clk 0:00:19.4]} 1-0

[Event "Early-Titled-Tuesday-Blitz-October-03-2023"]
[Site "Chess.com"]
[Date "2023.10.03"]
[Round "2"]
[White "jerry_77"]
[Black "mapleaff"]
[Result "1-0"]
[WhiteElo "2615"]
[BlackElo "2359"]
[TimeControl "180+1"]
[EndTime "8:16:22 PDT"]
[Termination "jerry_77 won by resignation"]

1. e4 {[%clk 0:03:00.9]} 1... e5 {[%clk 0:02:56.2]} 2. Nf3 {[%clk 0:02:58.9]}
2... Nc6 {[%clk 0:02:55.9]} 3. d4 {[%clk 0:02:58.7]} 3... exd4 {[%clk
0:02:55.7]} 4. Nxd4 {[%clk 0:02:59.6]} 4... Nf6 {[%clk 0:02:55.7]} 5. Nxc6
{[%clk 0:02:59.1]} 5... bxc6 {[%clk 0:02:55.1]} 6. Bd3 {[%clk 0:02:59.1]} 6...
d5 {[%clk 0:02:52.8]} 7. exd5 {[%clk 0:02:59.4]} 7... cxd5 {[%clk 0:02:46.7]} 8.
Kf1 {[%clk 0:02:59.3]} 8... Bd6 {[%clk 0:02:42.5]} 9. h3 {[%clk 0:02:58.6]} 9...
O-O {[%clk 0:02:39.4]} 10. Nd2 {[%clk 0:02:58.6]} 10... c5 {[%clk 0:02:37.8]}
11. c3 {[%clk 0:02:57.8]} 11... Re8 {[%clk 0:02:33.1]} 12. Nf3 {[%clk
0:02:58.1]} 12... Rb8 {[%clk 0:02:31]} 13. b3 {[%clk 0:02:56.7]} 13... Ne4
{[%clk 0:02:22]} 14. c4 {[%clk 0:02:36.9]} 14... d4 {[%clk 0:02:11]} 15. Qc2
{[%clk 0:02:32.1]} 15... Bb7 {[%clk 0:02:07.5]} 16. Bd2 {[%clk 0:02:22.8]} 16...
f5 {[%clk 0:01:51.3]} 17. Re1 {[%clk 0:02:18.8]} 17... Qf6 {[%clk 0:01:45.3]}
18. h4 {[%clk 0:02:15.7]} 18... h6 {[%clk 0:01:44]} 19. h5 {[%clk 0:02:13.9]}
19... Nxd2+ {[%clk 0:01:30.6]} 20. Qxd2 {[%clk 0:02:05.8]} 20... Rxe1+ {[%clk
0:01:11.4]} 21. Qxe1 {[%clk 0:01:57.1]} 21... Kf8 {[%clk 0:01:07.1]} 22. Qa5
{[%clk 0:01:54.2]} 22... Be4 {[%clk 0:00:57.3]} 23. Ne1 {[%clk 0:01:29.9]} 23...
Qe7 {[%clk 0:00:39.1]} 24. Rh3 {[%clk 0:01:20.8]} 24... Re8 {[%clk 0:00:37]} 25.
Bxe4 {[%clk 0:01:13.7]} 25... Qxe4 {[%clk 0:00:29.3]} 26. Qd2 {[%clk 0:01:13.9]}
26... Bf4 {[%clk 0:00:28.8]} 27. Qd1 {[%clk 0:01:10.3]} 27... a5 {[%clk
0:00:18.5]} 28. Nd3 {[%clk 0:01:09.3]} 28... Bg5 {[%clk 0:00:17.8]} 29. Nxc5
{[%clk 0:01:07.8]} 29... Qg4 {[%clk 0:00:12.3]} 30. Qxg4 {[%clk 0:01:04.2]}
30... fxg4 {[%clk 0:00:13.2]} 31. Rd3 {[%clk 0:01:04.3]} 31... Bf6 {[%clk
0:00:11.2]} 32. Nd7+ {[%clk 0:01:03.9]} 32... Kf7 {[%clk 0:00:10.8]} 33. Nxf6
{[%clk 0:01:04.8]} 33... Kxf6 {[%clk 0:00:11.4]} 34. Rxd4 {[%clk 0:01:05.4]} 1-0

[Event "Early-Titled-Tuesday-Blitz-October-03-2023"]
[Site "Chess.com"]
[Date "2023.10.03"]
[Round "2"]
[White "elamier"]
[Black "Yushko_Olga"]
[Result "0-1"]
[WhiteElo "2402"]
[BlackElo "2086"]
[TimeControl "180+1"]
[EndTime "8:16:22 PDT"]
[Termination "Yushko_Olga won by resignation"]

1. d4 {[%clk 0:02:56.8]} 1... e6 {[%clk 0:03:00]} 2. c4 {[%clk 0:02:56.8]} 2...
f5 {[%clk 0:02:59.8]} 3. Nf3 {[%clk 0:02:55.3]} 3... d6 {[%clk 0:02:59]} 4. Nc3
{[%clk 0:02:51.8]} 4... Nf6 {[%clk 0:02:58.6]} 5. Qc2 {[%clk 0:02:52.3]} 5...
Nc6 {[%clk 0:02:53.1]} 6. e4 {[%clk 0:02:44.2]} 6... e5 {[%clk 0:02:43.2]} 7.
dxe5 {[%clk 0:02:36.3]} 7... dxe5 {[%clk 0:02:44.1]} 8. Bg5 {[%clk 0:02:27.6]}
8... fxe4 {[%clk 0:02:29.5]} 9. Nxe4 {[%clk 0:02:18.6]} 9... Be7 {[%clk
0:02:26.3]} 10. Rd1 {[%clk 0:02:17.2]} 10... Nd4 {[%clk 0:02:23.7]} 11. Nxd4
{[%clk 0:02:05.3]} 11... exd4 {[%clk 0:02:24.6]} 12. Ng3 {[%clk 0:01:30.1]}
12... O-O {[%clk 0:02:20.3]} 13. Bd3 {[%clk 0:01:29.7]} 13... Bb4+ {[%clk
0:02:16.6]} 14. Kf1 {[%clk 0:01:12.2]} 14... h6 {[%clk 0:02:10.5]} 15. Bxf6
{[%clk 0:01:06.9]} 15... Qxf6 {[%clk 0:02:10.2]} 16. Ne4 {[%clk 0:01:06.9]}
16... Qf4 {[%clk 0:02:01.6]} 17. c5 {[%clk 0:01:01.4]} 17... Bf5 {[%clk
0:01:49.3]} 18. f3 {[%clk 0:00:44.3]} 18... Kh8 {[%clk 0:01:42.1]} 19. a3 {[%clk
0:00:36.1]} 19... Bxe4 {[%clk 0:01:41.4]} 20. Bxe4 {[%clk 0:00:35.2]} 20... Bxc5
{[%clk 0:01:36]} 21. Qxc5 {[%clk 0:00:35.6]} 21... Qxe4 {[%clk 0:01:35.7]} 22.
Qxd4 {[%clk 0:00:36.3]} 22... Rxf3+ {[%clk 0:01:27.7]} 23. gxf3 {[%clk
0:00:36.1]} 23... Qxf3+ {[%clk 0:01:27.6]} 24. Kg1 {[%clk 0:00:31]} 24... Rf8
{[%clk 0:01:07.5]} 25. b4 {[%clk 0:00:20.9]} 25... Rf5 {[%clk 0:01:00.1]} 26.
Qd8+ {[%clk 0:00:14.3]} 26... Kh7 {[%clk 0:01:00.2]} 0-1

[Event "Early-Titled-Tuesday-Blitz-October-03-2023"]
[Site "Chess.com"]
[Date "2023.10.03"]
[Round "2"]
[White "Duhless"]
[Black "karinachess1"]
[Result "0-1"]
[WhiteElo "2964"]
[BlackElo "2640"]
[TimeControl "180+1"]
[EndTime "8:16:25 PDT"]
[Termination "karinachess1 won by resignation"]

1. d4 {[%clk 0:02:55.5]} 1... Nf6 {[%clk 0:02:58]} 2. c4 {[%clk 0:02:53.8]} 2...
e6 {[%clk 0:02:58]} 3. Nc3 {[%clk 0:02:40.6]} 3... d5 {[%clk 0:02:58]} 4. cxd5
{[%clk 0:02:37.1]} 4... exd5 {[%clk 0:02:58.9]} 5. Bg5 {[%clk 0:02:35.8]} 5...
c6 {[%clk 0:02:58.4]} 6. e3 {[%clk 0:02:33.7]} 6... Be7 {[%clk 0:02:57.8]} 7.
Bd3 {[%clk 0:02:31.3]} 7... Nbd7 {[%clk 0:02:57.5]} 8. Qc2 {[%clk 0:02:30.9]}
8... h6 {[%clk 0:02:57.4]} 9. Bh4 {[%clk 0:02:30.4]} 9... Nh5 {[%clk 0:02:57.6]}
10. Bxe7 {[%clk 0:02:25.8]} 10... Qxe7 {[%clk 0:02:58.5]} 11. Nge2 {[%clk
0:02:26.7]} 11... Nb6 {[%clk 0:02:57.6]} 12. O-O-O {[%clk 0:02:24]} 12... Bd7
{[%clk 0:02:55.9]} 13. Kb1 {[%clk 0:02:23.6]} 13... O-O-O {[%clk 0:02:54.8]} 14.
Ka1 {[%clk 0:02:23.3]} 14... Kb8 {[%clk 0:02:54.5]} 15. Rb1 {[%clk 0:02:18.7]}
15... c5 {[%clk 0:02:17.5]} 16. dxc5 {[%clk 0:02:16.1]} 16... Qxc5 {[%clk
0:02:17.2]} 17. Rbc1 {[%clk 0:02:14.7]} 17... Nf6 {[%clk 0:02:11.6]} 18. Nd4
{[%clk 0:02:14.4]} 18... Rc8 {[%clk 0:02:02.7]} 19. Rhd1 {[%clk 0:02:13.2]}
19... g6 {[%clk 0:01:45.3]} 20. h3 {[%clk 0:02:08]} 20... Rhd8 {[%clk
0:01:39.6]} 21. b3 {[%clk 0:02:04.7]} 21... a6 {[%clk 0:01:15.5]} 22. Qb2 {[%clk
0:02:04]} 22... Qe7 {[%clk 0:01:15.6]} 23. Nce2 {[%clk 0:01:51.6]} 23... Ne4
{[%clk 0:01:08.4]} 24. Bxe4 {[%clk 0:01:38.3]} 24... dxe4 {[%clk 0:00:58.7]} 25.
Nc3 {[%clk 0:01:33.7]} 25... f5 {[%clk 0:00:47.9]} 26. Rc2 {[%clk 0:01:31.2]}
26... Be8 {[%clk 0:00:40.1]} 27. Rcd2 {[%clk 0:01:30]} 27... Rd7 {[%clk
0:00:30.8]} 28. g3 {[%clk 0:01:20.1]} 28... Rdc7 {[%clk 0:00:30]} 29. Nde2
{[%clk 0:01:15.3]} 29... Bf7 {[%clk 0:00:27.1]} 30. Rd5 {[%clk 0:01:09.5]} 30...
Nxd5 {[%clk 0:00:24.4]} 31. Nxd5 {[%clk 0:01:09.6]} 31... Bxd5 {[%clk
0:00:23.9]} 32. Rxd5 {[%clk 0:01:10.2]} 32... Rc2 {[%clk 0:00:23.9]} 0-1

[Event "Early-Titled-Tuesday-Blitz-October-03-2023"]
[Site "Chess.com"]
[Date "2023.10.03"]
[Round "2"]
[White "Daffidollchess2"]
[Black "Road2GM3000"]
[Result "1-0"]
[WhiteElo "2707"]
[BlackElo "2362"]
[TimeControl "180+1"]
[EndTime "8:16:32 PDT"]
[Termination "Daffidollchess2 won by resignation"]

1. e4 {[%clk 0:02:59.9]} 1... c5 {[%clk 0:02:59.9]} 2. Nf3 {[%clk 0:03:00.2]}
2... d6 {[%clk 0:03:00.3]} 3. d4 {[%clk 0:03:00.7]} 3... cxd4 {[%clk 0:02:59.9]}
4. Nxd4 {[%clk 0:03:01.6]} 4... Nf6 {[%clk 0:03:00.1]} 5. f3 {[%clk 0:03:02.1]}
5... e5 {[%clk 0:02:59]} 6. Nb3 {[%clk 0:03:02.5]} 6... a5 {[%clk 0:02:59.3]} 7.
c4 {[%clk 0:02:58]} 7... Be7 {[%clk 0:02:58.1]} 8. Nc3 {[%clk 0:02:56.7]} 8...
Be6 {[%clk 0:02:57.6]} 9. Be3 {[%clk 0:02:56.1]} 9... a4 {[%clk 0:02:57.1]} 10.
Nc1 {[%clk 0:02:55.6]} 10... O-O {[%clk 0:02:56.9]} 11. Be2 {[%clk 0:02:52.7]}
11... a3 {[%clk 0:02:43.2]} 12. b3 {[%clk 0:02:52.3]} 12... Nc6 {[%clk 0:02:37]}
13. O-O {[%clk 0:02:51.5]} 13... Nd7 {[%clk 0:02:37.2]} 14. Qd2 {[%clk
0:02:50.1]} 14... f5 {[%clk 0:02:34.8]} 15. exf5 {[%clk 0:02:49.1]} 15... Bxf5
{[%clk 0:02:34.4]} 16. Bd3 {[%clk 0:02:49.5]} 16... Bxd3 {[%clk 0:02:33.4]} 17.
Nxd3 {[%clk 0:02:48.7]} 17... Nf6 {[%clk 0:02:25]} 18. Nf2 {[%clk 0:02:48.4]}
18... Qa5 {[%clk 0:02:21]} 19. Rad1 {[%clk 0:02:41.8]} 19... Nd8 {[%clk
0:01:59.5]} 20. Qc2 {[%clk 0:02:38.5]} 20... Ne6 {[%clk 0:01:53]} 21. Nd5 {[%clk
0:02:33.8]} 21... Nxd5 {[%clk 0:01:50.3]} 22. Rxd5 {[%clk 0:02:33.4]} 22... Qc7
{[%clk 0:01:47.5]} 23. Ne4 {[%clk 0:02:32.9]} 23... Nc5 {[%clk 0:01:41.4]} 24.
Rfd1 {[%clk 0:02:16.3]} 24... Rad8 {[%clk 0:01:40.4]} 25. Nxc5 {[%clk
0:02:11.8]} 25... dxc5 {[%clk 0:01:40.3]} 26. Qe4 {[%clk 0:02:12.4]} 26... Kh8
{[%clk 0:01:27.9]} 27. Kf1 {[%clk 0:02:07.8]} 27... h6 {[%clk 0:01:11]} 28. Ke2
{[%clk 0:02:06.9]} 28... Rxd5 {[%clk 0:00:22.7]} 29. Rxd5 {[%clk 0:02:06.3]}
29... Rd8 {[%clk 0:00:21.9]} 30. Rxe5 {[%clk 0:01:46.4]} 30... Bf6 {[%clk
0:00:21.6]} 31. Re8+ {[%clk 0:01:42]} 31... Rxe8 {[%clk 0:00:21]} 32. Qxe8+
{[%clk 0:01:42.5]} 32... Kh7 {[%clk 0:00:21.7]} 33. Qe4+ {[%clk 0:01:43.1]}
33... Kh8 {[%clk 0:00:21.9]} 34. h4 {[%clk 0:01:42]} 34... Qd8 {[%clk
0:00:19.2]} 35. h5 {[%clk 0:01:37.5]} 35... b6 {[%clk 0:00:18.6]} 36. Qd5 {[%clk
0:01:26.9]} 36... Qe7 {[%clk 0:00:15.5]} 37. Qa8+ {[%clk 0:01:24.1]} 37... Kh7
{[%clk 0:00:15.4]} 38. Qe4+ {[%clk 0:01:24.7]} 38... Qxe4 {[%clk 0:00:16.1]} 39.
fxe4 {[%clk 0:01:25.3]} 39... Kg8 {[%clk 0:00:16.5]} 40. Kf3 {[%clk 0:01:24.1]}
40... Kf7 {[%clk 0:00:17.1]} 41. Bf4 {[%clk 0:01:23]} 41... Bd8 {[%clk
0:00:16.9]} 42. Bc1 {[%clk 0:01:20.2]} 42... Ke6 {[%clk 0:00:16.9]} 43. Bxa3
{[%clk 0:01:20.8]} 43... Bf6 {[%clk 0:00:16.1]} 44. Bc1 {[%clk 0:01:21.4]} 44...
Bd4 {[%clk 0:00:16.2]} 45. Bf4 {[%clk 0:01:21.7]} 45... Bb2 {[%clk 0:00:16.6]}
46. Bc7 {[%clk 0:01:21]} 46... Bd4 {[%clk 0:00:16.6]} 47. Bxb6 {[%clk
0:01:20.9]} 47... Bg1 {[%clk 0:00:17.3]} 48. a4 {[%clk 0:01:20.5]} 48... Bd4
{[%clk 0:00:16.9]} 49. a5 {[%clk 0:01:20.7]} 49... Bc3 {[%clk 0:00:17.7]} 50. a6
{[%clk 0:01:20.7]} 50... Ba5 {[%clk 0:00:17.7]} 51. Bxa5 {[%clk 0:01:20.4]} 1-0

[Event "Early-Titled-Tuesday-Blitz-October-03-2023"]
[Site "Chess.com"]
[Date "2023.10.03"]
[Round "2"]
[White "Mysterio47"]
[Black "wild3000"]
[Result "0-1"]
[WhiteElo "2713"]
[BlackElo "2402"]
[TimeControl "180+1"]
[EndTime "8:16:37 PDT"]
[Termination "wild3000 won by resignation"]

1. e4 {[%clk 0:03:00.9]} 1... a6 {[%clk 0:02:56.2]} 2. d4 {[%clk 0:03:00.7]}
2... e6 {[%clk 0:02:56.3]} 3. Nf3 {[%clk 0:02:59.8]} 3... d5 {[%clk 0:02:54.2]}
4. e5 {[%clk 0:03:00.1]} 4... c5 {[%clk 0:02:54.5]} 5. c3 {[%clk 0:03:00.7]}
5... Nc6 {[%clk 0:02:54.5]} 6. Be2 {[%clk 0:02:58.4]} 6... Nge7 {[%clk 0:02:54]}
7. O-O {[%clk 0:02:51.2]} 7... Nf5 {[%clk 0:02:52.4]} 8. dxc5 {[%clk 0:02:51.6]}
8... Bxc5 {[%clk 0:02:50.1]} 9. b4 {[%clk 0:02:52]} 9... Be7 {[%clk 0:02:49.6]}
10. Bd3 {[%clk 0:02:51.8]} 10... Qc7 {[%clk 0:02:45.9]} 11. Bxf5 {[%clk
0:02:50.9]} 11... exf5 {[%clk 0:02:46]} 12. Bf4 {[%clk 0:02:43.3]} 12... Be6
{[%clk 0:02:45.7]} 13. Bc1 {[%clk 0:02:43.4]} 13... O-O {[%clk 0:02:35.9]} 14.
Re1 {[%clk 0:02:41.9]} 14... Rfd8 {[%clk 0:02:31.3]} 15. a3 {[%clk 0:02:28.9]}
15... b5 {[%clk 0:02:24]} 16. Bf4 {[%clk 0:02:22.3]} 16... h6 {[%clk 0:02:18.7]}
17. h4 {[%clk 0:02:21.3]} 17... a5 {[%clk 0:01:57.8]} 18. Nbd2 {[%clk
0:02:13.8]} 18... d4 {[%clk 0:01:57.9]} 19. cxd4 {[%clk 0:02:02.6]} 19... Nxd4
{[%clk 0:01:58]} 20. bxa5 {[%clk 0:01:42.8]} 20... Nxf3+ {[%clk 0:01:38.1]} 21.
Qxf3 {[%clk 0:01:43.7]} 21... Rxa5 {[%clk 0:01:38.3]} 22. Qg3 {[%clk 0:01:38.5]}
22... Kh7 {[%clk 0:01:36.3]} 23. Nf1 {[%clk 0:01:12.3]} 23... Qc2 {[%clk
0:01:27]} 24. Ne3 {[%clk 0:01:08.8]} 24... Qb3 {[%clk 0:01:16.2]} 25. Reb1
{[%clk 0:00:53.8]} 25... Qd3 {[%clk 0:01:14.5]} 26. Rd1 {[%clk 0:00:50.7]} 26...
Qe4 {[%clk 0:01:14]} 27. Rxd8 {[%clk 0:00:32.8]} 27... Bxd8 {[%clk 0:01:14.9]}
28. h5 {[%clk 0:00:29.9]} 28... Ra4 {[%clk 0:01:09.4]} 29. Rd1 {[%clk
0:00:23.4]} 29... Be7 {[%clk 0:01:08.2]} 30. Bxh6 {[%clk 0:00:12.5]} 30... gxh6
{[%clk 0:01:07.8]} 31. Nf1 {[%clk 0:00:08.6]} 31... Rxa3 {[%clk 0:01:02.7]} 32.
f3 {[%clk 0:00:08.5]} 32... Qh4 {[%clk 0:00:57.1]} 33. Qxh4 {[%clk 0:00:08.7]}
33... Bxh4 {[%clk 0:00:57]} 34. Rb1 {[%clk 0:00:09.6]} 34... Bc4 {[%clk
0:00:52.6]} 0-1

[Event "Early-Titled-Tuesday-Blitz-October-03-2023"]
[Site "Chess.com"]
[Date "2023.10.03"]
[Round "2"]
[White "Taran2004"]
[Black "NaciSAN"]
[Result "1-0"]
[WhiteElo "2433"]
[BlackElo "2121"]
[TimeControl "180+1"]
[EndTime "8:16:38 PDT"]
[Termination "Taran2004 won on time"]

1. e4 {[%clk 0:03:00.9]} 1... d6 {[%clk 0:03:00.9]} 2. d4 {[%clk 0:03:00.4]}
2... Nf6 {[%clk 0:02:40.1]} 3. Nc3 {[%clk 0:02:59.7]} 3... e5 {[%clk 0:02:40.4]}
4. Nf3 {[%clk 0:02:59.3]} 4... Nc6 {[%clk 0:02:39.8]} 5. Bc4 {[%clk 0:02:58.4]}
5... Be7 {[%clk 0:02:38.9]} 6. O-O {[%clk 0:02:58.4]} 6... O-O {[%clk
0:02:38.9]} 7. h3 {[%clk 0:02:56.5]} 7... a6 {[%clk 0:02:32.2]} 8. a4 {[%clk
0:02:56.5]} 8... h6 {[%clk 0:02:32.2]} 9. Be3 {[%clk 0:02:55.2]} 9... Re8 {[%clk
0:02:31.7]} 10. Qd2 {[%clk 0:02:51.2]} 10... Bf8 {[%clk 0:02:31.4]} 11. d5
{[%clk 0:02:34.1]} 11... Ne7 {[%clk 0:02:31.2]} 12. Rae1 {[%clk 0:02:32.4]}
12... Ng6 {[%clk 0:02:30.8]} 13. Nh2 {[%clk 0:02:32.3]} 13... Be7 {[%clk
0:02:25.8]} 14. Ne2 {[%clk 0:02:26.6]} 14... Nh7 {[%clk 0:02:21.3]} 15. f4
{[%clk 0:02:24]} 15... exf4 {[%clk 0:02:21.4]} 16. Nxf4 {[%clk 0:02:24.9]} 16...
Nxf4 {[%clk 0:02:20.3]} 17. Bxf4 {[%clk 0:02:25.5]} 17... Bg5 {[%clk 0:02:14.7]}
18. Bd3 {[%clk 0:02:24.2]} 18... Bxf4 {[%clk 0:02:00]} 19. Qxf4 {[%clk
0:02:25.1]} 19... Qe7 {[%clk 0:01:42.3]} 20. e5 {[%clk 0:02:15.4]} 20... dxe5
{[%clk 0:01:40.7]} 21. Bxh7+ {[%clk 0:02:15.4]} 21... Kxh7 {[%clk 0:01:35.5]}
22. Qxf7 {[%clk 0:02:15.5]} 22... Bd7 {[%clk 0:01:29.5]} 23. Qh5 {[%clk
0:02:03.2]} 23... Rf8 {[%clk 0:01:24.8]} 24. Rxf8 {[%clk 0:01:57.6]} 24... Rxf8
{[%clk 0:01:25.7]} 25. Qxe5 {[%clk 0:01:57.3]} 25... Qxe5 {[%clk 0:01:24]} 26.
Rxe5 {[%clk 0:01:58.2]} 26... Bxa4 {[%clk 0:01:23.7]} 27. b3 {[%clk 0:01:58.4]}
27... Re8 {[%clk 0:01:20.5]} 28. Rf5 {[%clk 0:01:54.4]} 28... Bd7 {[%clk
0:01:13.1]} 29. Rf7 {[%clk 0:01:54.1]} 29... Rd8 {[%clk 0:01:12.4]} 30. Nf3
{[%clk 0:01:49.9]} 30... Kg8 {[%clk 0:00:31.3]} 31. Ne5 {[%clk 0:01:37.1]} 31...
Be8 {[%clk 0:00:30.3]} 32. Rxc7 {[%clk 0:01:36.8]} 32... Rxd5 {[%clk 0:00:30.7]}
33. Nd3 {[%clk 0:01:30.6]} 33... Bc6 {[%clk 0:00:29.7]} 34. g4 {[%clk
0:01:15.3]} 34... a5 {[%clk 0:00:27.4]} 35. Kf2 {[%clk 0:01:15]} 35... Kh7
{[%clk 0:00:25.7]} 36. Ke3 {[%clk 0:01:13.2]} 36... a4 {[%clk 0:00:09.5]} 37.
bxa4 {[%clk 0:01:02.2]} 37... Bxa4 {[%clk 0:00:10.4]} 38. c4 {[%clk 0:01:02.2]}
1-0

[Event "Early-Titled-Tuesday-Blitz-October-03-2023"]
[Site "Chess.com"]
[Date "2023.10.03"]
[Round "2"]
[White "PattyCastillo"]
[Black "Magila31"]
[Result "0-1"]
[WhiteElo "2037"]
[BlackElo "2410"]
[TimeControl "180+1"]
[EndTime "8:16:41 PDT"]
[Termination "Magila31 won on time"]

1. d4 {[%clk 0:03:00.1]} 1... Nf6 {[%clk 0:02:59.4]} 2. Nf3 {[%clk 0:02:52.1]}
2... g6 {[%clk 0:02:59]} 3. Nc3 {[%clk 0:02:45.6]} 3... Bg7 {[%clk 0:02:56.1]}
4. e4 {[%clk 0:02:46.1]} 4... d6 {[%clk 0:02:55.3]} 5. Be3 {[%clk 0:02:45.3]}
5... c6 {[%clk 0:02:53.7]} 6. Qd2 {[%clk 0:02:45.6]} 6... Nbd7 {[%clk
0:02:50.2]} 7. O-O-O {[%clk 0:02:41.7]} 7... b5 {[%clk 0:02:49.3]} 8. e5 {[%clk
0:02:41.3]} 8... b4 {[%clk 0:02:41.9]} 9. exf6 {[%clk 0:02:35.2]} 9... bxc3
{[%clk 0:02:40.2]} 10. Qxc3 {[%clk 0:02:36]} 10... Nxf6 {[%clk 0:02:33.7]} 11.
Qxc6+ {[%clk 0:02:32.1]} 11... Bd7 {[%clk 0:02:33.8]} 12. Qa6 {[%clk 0:02:21.4]}
12... O-O {[%clk 0:02:27.1]} 13. Bd3 {[%clk 0:02:18.6]} 13... Nd5 {[%clk
0:02:21.9]} 14. Bd2 {[%clk 0:02:11.9]} 14... Qc7 {[%clk 0:02:09.4]} 15. Kb1
{[%clk 0:02:07.6]} 15... Rfb8 {[%clk 0:02:06.6]} 16. Be4 {[%clk 0:01:59.9]}
16... Bc6 {[%clk 0:02:04.4]} 17. Bxd5 {[%clk 0:00:56.4]} 17... Bxd5 {[%clk
0:02:03.3]} 18. Bc1 {[%clk 0:00:43.4]} 18... Bc4 {[%clk 0:01:47.9]} 19. Qa3
{[%clk 0:00:41.2]} 19... Rb6 {[%clk 0:01:41.8]} 20. b3 {[%clk 0:00:24.1]} 20...
Ra6 {[%clk 0:01:27.5]} 21. Qb4 {[%clk 0:00:22.1]} 21... Bd5 {[%clk 0:01:27.5]}
22. Bb2 {[%clk 0:00:19.3]} 22... Rb8 {[%clk 0:01:24.2]} 23. Qd2 {[%clk
0:00:18.7]} 23... Be4 {[%clk 0:01:14]} 24. Rhe1 {[%clk 0:00:15.2]} 24... Bf5
{[%clk 0:01:08.8]} 25. Nh4 {[%clk 0:00:11.2]} 25... Bg4 {[%clk 0:01:07.4]} 26.
f3 {[%clk 0:00:10]} 26... Bc8 {[%clk 0:00:58]} 27. g4 {[%clk 0:00:06.1]} 27...
Bb7 {[%clk 0:00:51.4]} 28. Qe2 {[%clk 0:00:04.7]} 28... e6 {[%clk 0:00:48.1]}
0-1